fUSD/lending_fUSD_20250405
["ID","MTS","AMOUNT","RATE_DAILY","PERIOD"]
[357196459,1743885060571,-1000.0,0.00043179,4]
[357196460,1743885060580,-1000.0,0.00043179,4]
[357196461,1743885060590,-1000.0,0.00043179,4]
[357196462,1743885060599,-1000.0,0.00043179,4]
[357196463,1743885060608,-1000.0,0.00043179,4]
[357196464,1743885060617,-1000.0,0.00043179,4]
[357196465,1743885060627,-1000.0,0.00043179,4]
[357196466,1743885060635,-1000.0,0.00043179,4]
[357196467,1743885060645,-1000.0,0.00043179,4]
[357196468,1743885060655,-1000.0,0.00043179,4]
[357196469,1743885060664,-1000.0,0.00043179,4]
[357196470,1743885060674,-1000.0,0.00043179,4]
[357196471,1743885060683,-1000.0,0.00043179,4]
[357196472,1743885060692,-1000.0,0.00043179,4]
[357196473,1743885060701,-209.0,0.0004333,2]
[357196474,1743885060710,-210.0,0.0004333,2]
[357196475,1743885060720,-212.0,0.0004333,30]
[357196476,1743885060730,-210.0,0.0004337,2]
[357196477,1743885060739,-187.95,0.00043574,2]
[357196478,1743885060748,-500.0,0.00043627,30]
[357196479,1743885060758,-3054.31448383,0.00043648,2]
[357196480,1743885060767,-150.0,0.00043799,3]
[357196481,1743885060776,-283667.01,0.000438,60]
[357196482,1743885060785,-156.93160195,0.000438,120]
[357196483,1743885060794,-508.02636224,0.00043835,30]
[357196484,1743885060802,-516.62767288,0.00043835,30]
[357196485,1743885060811,-1000.0,0.00043835,120]
[357196486,1743885060821,-1000.0,0.00043835,120]
[357196487,1743885060830,-1000.0,0.00043835,120]
[357196488,1743885060839,-1000.0,0.00043835,120]
[357196489,1743885060848,-1000.0,0.00043835,120]
[357196490,1743885060857,-1019.70610897,0.00043835,120]
[357196491,1743885060866,-3500.0,0.00043835,10]
[357196492,1743885060875,-3500.0,0.00043835,10]
[357196493,1743885060885,-3500.0,0.00043835,10]
[357196494,1743885060894,-3500.0,0.00043835,10]
[357196495,1743885060904,-3044.64861873,0.00043835,10]
[357196496,1743885060913,-1043.57303939,0.00043835,120]
[357196497,1743885060923,-500.0,0.00043835,2]
[357196498,1743885060932,-500.0,0.00043835,2]
[357196499,1743885060941,-500.0,0.00043835,2]
[357196500,1743885060950,-500.0,0.00043835,2]
[357196501,1743885060960,-500.0,0.00043835,2]
[357196502,1743885060969,-500.0,0.00043835,2]
[357196503,1743885060978,-500.0,0.00043835,2]
[357196504,1743885060988,-500.0,0.00043835,2]
[357196505,1743885060997,-500.0,0.00043835,2]
[357196506,1743885061006,-500.0,0.00043835,2]
[357196507,1743885061015,-448.68684707,0.00043835,2]
[357196508,1743885061025,-769.97935476,0.00043836,120]
[357196509,1743885061034,-769.97935476,0.00043836,120]
[357196510,1743885061044,-769.97935476,0.00043836,120]
[357196511,1743885061053,-769.97935476,0.00043836,120]
[357196512,1743885061063,-769.97935476,0.00043836,120]
[357196513,1743885061072,-769.97935476,0.00043836,120]
[357196514,1743885061081,-769.97935476,0.00043836,120]
[357196515,1743885061091,-769.97935476,0.00043836,120]
[357196516,1743885061100,-769.97935476,0.00043836,120]
[357196517,1743885061109,-769.97935476,0.00043836,120]
[357196518,1743885061118,-769.97935476,0.00043836,120]
[357196519,1743885061128,-769.97935476,0.00043836,120]
[357196520,1743885061137,-769.97935476,0.00043836,120]
[357196521,1743885061147,-769.97935476,0.00043836,120]
[357196522,1743885061156,-769.97935476,0.00043836,120]
[357196523,1743885061165,-769.97935476,0.00043836,120]
[357196524,1743885061174,-769.97935476,0.00043836,120]
[357196525,1743885061183,-769.97935476,0.00043836,120]
[357196526,1743885061193,-769.97935476,0.00043836,120]
[357196527,1743885061203,-769.97935476,0.00043836,120]
[357196528,1743885061212,-769.97935476,0.00043836,120]
[357196529,1743885061222,-769.97935476,0.00043836,120]
[357196530,1743885061231,-769.97935476,0.00043836,120]
[357196531,1743885061240,-769.97935476,0.00043836,120]
[357196532,1743885061250,-769.97935476,0.00043836,120]
[357196533,1743885061260,-769.97935476,0.00043836,120]
[357196534,1743885061269,-769.97935476,0.00043836,120]
[357196535,1743885061279,-769.97935476,0.00043836,120]
[357196536,1743885061288,-769.97935476,0.00043836,120]
[357196537,1743885061298,-769.97935476,0.00043836,120]
[357196538,1743885061307,-769.97935476,0.00043836,120]
[357196539,1743885061316,-769.97935476,0.00043836,120]
[357196540,1743885061326,-769.97935476,0.00043836,120]
[357196541,1743885061335,-769.97935476,0.00043836,120]
[357196542,1743885061345,-769.97935476,0.00043836,120]
[357196543,1743885061354,-769.97935476,0.00043836,120]
[357196544,1743885061364,-769.97935476,0.00043836,120]
[357196545,1743885061373,-769.97935476,0.00043836,120]
[357196546,1743885061384,-769.97935476,0.00043836,120]
[357196547,1743885061394,-769.97935476,0.00043836,120]
[357196548,1743885061403,-769.97935476,0.00043836,120]
[357196549,1743885061412,-769.97935476,0.00043836,120]
[357196550,1743885061421,-769.97935476,0.00043836,120]
[357196551,1743885061430,-769.97935476,0.00043836,120]
[357196552,1743885061439,-769.97935476,0.00043836,120]
[357196553,1743885061447,-769.97935476,0.00043836,120]
[357196554,1743885061457,-769.97935476,0.00043836,120]
[357196555,1743885061466,-769.97935476,0.00043836,120]
[357196556,1743885061475,-769.97935476,0.00043836,120]
[357196557,1743885061485,-769.97935476,0.00043836,120]
[357196558,1743885061494,-769.97935476,0.00043836,120]
[357196559,1743885061504,-769.97935476,0.00043836,120]
[357196560,1743885061514,-1080.85436644,0.00043836,120]
[357196561,1743885061523,-1080.85436644,0.00043836,120]
[357196562,1743885061533,-1080.85436644,0.00043836,120]
[357196563,1743885061543,-1080.85436644,0.00043836,120]
[357196564,1743885061553,-1080.85436644,0.00043836,120]
[357196565,1743885061562,-1080.85436644,0.00043836,120]
[357196566,1743885061572,-1080.85436644,0.00043836,120]
[357196567,1743885061581,-1080.85436644,0.00043836,120]
[357196568,1743885061590,-1080.85436644,0.00043836,120]
[357196569,1743885061599,-1080.85436644,0.00043836,120]
[357196570,1743885061611,-1080.85436644,0.00043836,120]
[357196571,1743885061623,-1080.85436644,0.00043836,120]
[357196572,1743885061638,-1080.85436644,0.00043836,120]
[357196573,1743885061650,-1080.85436644,0.00043836,120]
[357196574,1743885061666,-1080.85436644,0.00043836,120]
[357196575,1743885061676,-1080.85436644,0.00043836,120]
[357196576,1743885061688,-1080.85436644,0.00043836,120]
[357196577,1743885061700,-1080.85436644,0.00043836,120]
[357196578,1743885061714,-1321.04422564,0.00043836,120]
[357196579,1743885061726,-1080.85436644,0.00043836,120]
[357196580,1743885061739,-1080.85436644,0.00043836,120]
[357196581,1743885061751,-1080.85436644,0.00043836,120]
[357196582,1743885061763,-1080.85436644,0.00043836,120]
[357196583,1743885061774,-1080.85436644,0.00043836,120]
[357196584,1743885061786,-1080.85436644,0.00043836,120]
[357196585,1743885061796,-1080.85436644,0.00043836,120]
[357196586,1743885061807,-1321.04422564,0.00043836,120]
[357196587,1743885061819,-1080.85436644,0.00043836,120]
[357196588,1743885061831,-1080.85436644,0.00043836,120]
[357196589,1743885061843,-1080.85436644,0.00043836,120]
[357196590,1743885061854,-1080.85436644,0.00043836,120]
[357196591,1743885061867,-1080.85436644,0.00043836,120]
[357196592,1743885061878,-1321.04422564,0.00043836,120]
[357196593,1743885061890,-1080.85436644,0.00043836,120]
[357196594,1743885061903,-1080.85436644,0.00043836,120]
[357196595,1743885061915,-1080.85436644,0.00043836,120]
[357196596,1743885061926,-1321.04422564,0.00043836,120]
[357196597,1743885061937,-1070.04582276,0.00043836,120]
[357196598,1743885061949,-1070.04582276,0.00043836,120]
[357196599,1743885061961,-1070.04582276,0.00043836,120]
[357196600,1743885061973,-1070.04582276,0.00043836,120]
[357196601,1743885061984,-1188.93980307,0.00043836,120]
[357196602,1743885061996,-1070.04582276,0.00043836,120]
[357196603,1743885062007,-1070.04582276,0.00043836,120]
[357196604,1743885062018,-1070.04582276,0.00043836,120]
[357196605,1743885062029,-1070.04582276,0.00043836,120]
[357196606,1743885062040,-1070.04582276,0.00043836,120]
[357196607,1743885062054,-1070.04582276,0.00043836,120]
[357196608,1743885062064,-152.0,0.00043856,10]
[357196609,1743885062076,-170.46,0.00043879,2]
[357196610,1743885062087,-500.0,0.00043886,30]
[357196611,1743885062098,-2682.69,0.000439,14]
[357196612,1743885062108,-181.07991981,0.000439,18]
[357196613,1743885062119,-200.0,0.000439,16]
[357196614,1743885062129,-164.76880158,0.000439,13]
[357196615,1743885062141,-900.0,0.00043928,120]
[357196616,1743885062155,-500.0,0.00043928,120]
[357196617,1743885062166,-500.0,0.00043928,120]
[357196618,1743885062176,-150.0,0.00043999,3]
[357196619,1743885062186,-150.0,0.00043999,3]
[357196620,1743885062197,-150.0,0.00043999,3]
[357196621,1743885062208,-150.0,0.00043999,3]
[357196622,1743885062220,-150.0,0.00043999,3]
[357196623,1743885062232,-179.0,0.00044,120]
[357196624,1743885062242,-238.76971734,0.00044,120]
[357196625,1743885062253,-690.783,0.00044,120]
[357196626,1743885062263,-1555106.71888945,0.00044,2]
[357196627,1743885062274,-10023.3094802,0.00044,5]
[357196628,1743885062284,-160.0,0.00044,120]
[357196629,1743885062295,-79855.50974809,0.00044,2]
[357196630,1743885062306,-995825.50773203,0.00044,30]
[357196631,1743885062317,-350.0,0.00044,120]
[357196632,1743885062327,-150.0,0.00044033,120]
[357196633,1743885062338,-150.0,0.00044052,2]
[357196634,1743885062349,-1000.0,0.00044179,4]
[357196635,1743885062359,-151.270673,0.00044215,2]
[357196636,1743885062369,-452.25,0.00044239,2]
[357196637,1743885062381,-337.56,0.00044239,2]
[357196638,1743885062392,-500.0,0.00044246,30]
[357196639,1743885062403,-209.0,0.0004447,30]
[357196640,1743885062413,-210.0,0.0004447,30]
[357196641,1743885062423,-212.0,0.0004447,30]
[357196642,1743885062433,-210.0,0.0004447,30]
[357196643,1743885062443,-900.0,0.00044476,120]
[357196644,1743885062454,-1066.0,0.00044476,30]
[357196645,1743885062464,-150.0,0.00044476,30]
[357196646,1743885062474,-200.34227511,0.00044476,14]
[357196647,1743885062485,-150.0,0.00044476,30]
[357196648,1743885062495,-150.0,0.00044476,30]
[357196649,1743885062506,-150.0,0.00044476,30]
[357196650,1743885062516,-500.0,0.00044476,120]
[357196651,1743885062526,-563.35100821,0.00044476,120]
[357196652,1743885062537,-2000.0,0.000445,120]
[357196653,1743885062548,-150.0,0.00044532,30]
[357196654,1743885062559,-1072.05,0.00044567,2]
[357196655,1743885062569,-150.0,0.00044589,30]
[357196656,1743885062580,-150.0,0.00044645,30]
[357196657,1743885062590,-150.0,0.00044654,30]
[357196658,1743885062600,-150.0,0.00044701,30]
[357196659,1743885062611,-150.0,0.00044758,30]
[357196660,1743885062621,-98818.50219229,0.000448,120]
[357196661,1743885062631,-150.0,0.00044801,30]
[357196662,1743885062643,-150.0,0.00044814,30]
[357196663,1743885062655,-150.0,0.00044832,30]
[357196664,1743885062667,-500.0,0.00044839,30]
[357196665,1743885062677,-150.0,0.00044871,30]
[357196666,1743885062688,-150.0,0.00044927,30]
[357196667,1743885062699,-150.0,0.00044983,30]
[357196668,1743885062710,-150.0,0.00044989,2]
[357196669,1743885062721,-500.0,0.00044991,30]
[357196670,1743885062731,-1000.0,0.00044999,120]
[357196671,1743885062742,-50000.0,0.00045,45]
[357196672,1743885062752,-2006.94,0.00045,10]
[357196673,1743885062763,-501.09,0.00045,14]
[357196674,1743885062773,-1850.16855284,0.00045,20]
[357196675,1743885062784,-1000.0,0.00045,120]
[357196676,1743885062795,-25000.0,0.00045,2]
[357196677,1743885062805,-2100.0,0.00045,15]
[357196678,1743885062815,-500.0,0.00045,10]
[357196679,1743885062826,-25755.61,0.00045,60]
[357196680,1743885062836,-2200.0,0.00045,90]
[357196681,1743885062847,-236.52027335,0.00045,2]
[357196682,1743885062857,-151.0,0.00045,120]
[357196683,1743885062868,-2000.0,0.00045,120]
[357196684,1743885062878,-286.0,0.00045,120]
[357196685,1743885062889,-900.0,0.00045,2]
[357196686,1743885062899,-150.0,0.00045011,30]
[357196687,1743885062910,-900.0,0.00045024,120]
[357196688,1743885062921,-500.0,0.00045024,120]
[357196689,1743885062931,-150.0,0.0004504,30]
[357196690,1743885062942,-150.0,0.00045096,30]
[357196691,1743885062952,-2682.69,0.000451,14]
[357196692,1743885062963,-150.0,0.00045126,30]
[357196693,1743885062974,-150.0,0.00045152,30]
[357196694,1743885062984,-152.0,0.00045166,11]
[357196695,1743885062995,-150.0,0.00045189,30]
[357196696,1743885063006,-150.0,0.00045209,30]
[357196697,1743885063016,-150.0,0.00045265,30]
[357196698,1743885063026,-162.42,0.000453,39]
[357196699,1743885063036,-162.42,0.000453,39]
[357196700,1743885063048,-162.42,0.000453,39]
[357196701,1743885063059,-162.42,0.000453,39]
[357196702,1743885063070,-162.42,0.000453,39]
[357196703,1743885063082,-162.42,0.000453,39]
[357196704,1743885063092,-162.42,0.000453,39]
[357196705,1743885063103,-162.42,0.000453,39]
[357196706,1743885063114,-162.42,0.000453,39]
[357196707,1743885063125,-162.42,0.000453,39]
[357196708,1743885063137,-162.42,0.000453,39]
[357196709,1743885063148,-162.42,0.000453,39]
[357196710,1743885063159,-162.42,0.000453,39]
[357196711,1743885063169,-162.42,0.000453,39]
[357196712,1743885063184,-162.42,0.000453,39]
[357196713,1743885063194,-162.42,0.000453,39]
[357196714,1743885063205,-162.42,0.000453,39]
[357196715,1743885063215,-162.42,0.000453,39]
[357196716,1743885063226,-162.42,0.000453,39]
[357196717,1743885063236,-162.42,0.000453,39]
[357196718,1743885063247,-162.42,0.000453,39]
[357196719,1743885063257,-162.42,0.000453,39]
[357196720,1743885063269,-162.42,0.000453,39]
[357196721,1743885063279,-162.42,0.000453,39]
[357196722,1743885063290,-163.0,0.00045308,90]
[357196723,1743885063301,-150.0,0.00045322,30]
[357196724,1743885063312,-150.0,0.00045367,30]
[357196725,1743885063322,-150.0,0.00045378,30]
[357196726,1743885063516,-150.0,0.00045397,30]
[357196727,1743885063538,-150.0,0.00045434,30]
[357196728,1743885063552,-150.0,0.00045451,30]
[357196729,1743885063562,-150.0,0.00045491,30]
[357196730,1743885063572,-150.0,0.00045545,30]
[357196731,1743885063581,-150.0,0.00045547,30]
[357196732,1743885063592,-900.0,0.00045572,120]
[357196733,1743885063610,-500.0,0.00045572,120]
[357196734,1743885063632,-337.56,0.000456,120]
[357196735,1743885063642,-150.0,0.00045603,30]
[357196736,1743885063652,-500.0,0.00045652,30]
[357196737,1743885063667,-150.0,0.0004566,30]
[357196738,1743885063677,-3209.36838172,0.00045679,120]
[357196739,1743885063687,-150.0,0.00045716,30]
[357196740,1743885063698,-150.0,0.00045723,30]
[357196741,1743885063708,-150.0,0.00045772,30]
[357196742,1743885063718,-150.0,0.00045776,30]
[357196743,1743885063728,-150.0,0.00045829,30]
[357196744,1743885063739,-150.0,0.00045885,30]
[357196745,1743885063749,-595.13050474,0.000459,119]
[357196746,1743885063759,-150.0,0.00045902,30]
[357196747,1743885063769,-150.0,0.00045927,2]
[357196748,1743885063778,-150.0,0.00045942,30]
[357196749,1743885063788,-13636.08784231,0.00045968,2]
[357196750,1743885063798,-184.53,0.00045987,2]
[357196751,1743885063807,-150.0,0.00045998,30]
[357196752,1743885063816,-38518.53,0.00045999,2]
[357196753,1743885063826,-50000.0,0.00046,46]
[357196754,1743885063835,-237.38536511,0.00046,120]
[357196755,1743885063844,-500.0,0.00046,120]
[357196756,1743885063853,-152.65234459,0.00046,120]
[357196757,1743885063862,-195.61108263,0.00046,120]
[357196758,1743885063872,-2000.0,0.00046,120]
[357196759,1743885063881,-150.0,0.00046054,30]
[357196760,1743885063890,-150.0,0.0004608,30]
[357196761,1743885063899,-1000.0,0.00046087,2]
[357196762,1743885063909,-352.37398911,0.000461,120]
[357196763,1743885063918,-150.0,0.00046101,30]
[357196764,1743885063927,-500.0,0.00046103,30]
[357196765,1743885063937,-150.0,0.00046111,30]
[357196766,1743885063946,-900.0,0.0004612,120]
[357196767,1743885063955,-500.0,0.0004612,120]
[357196768,1743885063965,-150.0,0.00046167,30]
[357196769,1743885063975,-1000.0,0.00046179,3]
[357196770,1743885063984,-1000.0,0.00046179,4]
[357196771,1743885063994,-1000.0,0.00046179,4]
[357196772,1743885064003,-1000.0,0.00046179,2]
[357196773,1743885064012,-1000.0,0.00046179,2]
[357196774,1743885064021,-1000.0,0.00046179,2]
[357196775,1743885064031,-1000.0,0.00046179,2]
[357196776,1743885064039,-1000.0,0.00046179,2]
[357196777,1743885064049,-1000.0,0.00046179,2]
[357196778,1743885064058,-1000.0,0.00046179,2]
[357196779,1743885064067,-1000.0,0.00046179,2]
[357196780,1743885064077,-150.0,0.00046223,30]
[357196781,1743885064086,-150.0,0.00046258,30]
[357196782,1743885064096,-150.0,0.0004628,30]
[357196783,1743885064105,-150.0,0.00046317,30]
[357196784,1743885064114,-150.0,0.00046336,30]
[357196785,1743885064123,-775.47856019,0.00046387,2]
[357196786,1743885064134,-150.0,0.00046392,30]
[357196787,1743885064142,-150.0,0.00046426,30]
[357196788,1743885064151,-150.0,0.00046436,30]
[357196789,1743885064161,-150.0,0.00046449,30]
[357196790,1743885064170,-152.0,0.00046476,12]
[357196791,1743885064180,-1002.5288,0.00046499,2]
[357196792,1743885064189,-150.0,0.00046505,30]
[357196793,1743885064199,-500.0,0.00046555,5]
[357196794,1743885064208,-150.0,0.00046562,30]
[357196795,1743885064217,-1000.0,0.00046575,120]
[357196796,1743885064226,-500.0,0.00046575,120]
[357196797,1743885064236,-500.0,0.00046575,120]
[357196798,1743885064245,-500.0,0.00046575,120]
[357196799,1743885064254,-500.0,0.00046575,120]
[357196800,1743885064263,-500.0,0.00046575,120]
[357196801,1743885064272,-500.0,0.00046575,120]
[357196802,1743885064282,-500.0,0.00046575,120]
[357196803,1743885064291,-500.0,0.00046575,120]
[357196804,1743885064300,-500.0,0.00046575,120]
[357196805,1743885064309,-500.0,0.00046575,120]
[357196806,1743885064319,-500.0,0.00046575,120]
[357196807,1743885064328,-500.0,0.00046575,120]
[357196808,1743885064337,-500.0,0.00046575,120]
[357196809,1743885064346,-646.04962367,0.00046575,120]
[357196810,1743885064355,-500.0,0.00046575,120]
[357196811,1743885064364,-500.0,0.00046575,120]
[357196812,1743885064374,-500.0,0.00046575,120]
[357196813,1743885064384,-500.0,0.00046575,120]
[357196814,1743885064394,-500.0,0.00046575,120]
[357196815,1743885064403,-500.0,0.00046575,120]
[357196816,1743885064413,-500.0,0.00046575,120]
[357196817,1743885064422,-500.0,0.00046575,120]
[357196818,1743885064431,-500.0,0.00046575,120]
[357196819,1743885064441,-500.0,0.00046575,120]
[357196820,1743885064450,-500.0,0.00046575,120]
[357196821,1743885064462,-500.0,0.00046575,120]
[357196822,1743885064472,-500.0,0.00046575,120]
[357196823,1743885064481,-500.0,0.00046575,120]
[357196824,1743885064490,-500.0,0.00046575,120]
[357196825,1743885064499,-500.0,0.00046575,120]
[357196826,1743885064508,-500.0,0.00046575,120]
[357196827,1743885064518,-500.0,0.00046575,120]
[357196828,1743885064527,-500.0,0.00046575,120]
[357196829,1743885064536,-500.0,0.00046575,120]
[357196830,1743885064546,-500.0,0.00046575,120]
[357196831,1743885064561,-383.00195175,0.00046575,120]
[357196832,1743885064572,-500.0,0.00046575,120]
[357196833,1743885064581,-500.0,0.00046575,120]
[357196834,1743885064590,-431.44466131,0.00046575,120]
[357196835,1743885064599,-500.0,0.00046575,120]
[357196836,1743885064609,-500.0,0.00046575,120]
[357196837,1743885064618,-500.0,0.00046575,120]
[357196838,1743885064627,-500.0,0.00046575,120]
[357196839,1743885064636,-10001.0,0.000466,120]
[357196840,1743885064646,-1000.0,0.00046602,120]
[357196841,1743885064655,-150.0,0.00046614,30]
[357196842,1743885064665,-150.0,0.00046618,30]
[357196843,1743885064674,-484.60275836,0.0004663,120]
[357196844,1743885064684,-900.0,0.00046668,120]
[357196845,1743885064693,-303.70618923,0.00046668,120]
[357196846,1743885064702,-150.0,0.00046674,30]
[357196847,1743885064711,-1066.0,0.000467,30]
[357196848,1743885064720,-150.0,0.00046731,30]
[357196849,1743885064730,-351.61618149,0.00046731,2]
[357196850,1743885064739,-150.0,0.00046751,30]
[357196851,1743885064748,-500.0,0.00046778,5]
[357196852,1743885064757,-150.0,0.00046787,30]
[357196853,1743885064767,-150.0,0.00046793,30]
[357196854,1743885064776,-584.09207959,0.000468,120]
[357196855,1743885064785,-1000000.0,0.000468,120]
[357196856,1743885064794,-1072.05,0.00046831,2]
[357196857,1743885064803,-150.0,0.00046843,30]
[357196858,1743885064813,-150.0,0.00046864,2]
[357196859,1743885064822,-5100.0,0.0004688,2]
[357196860,1743885064831,-5150.0,0.0004688,34]
[357196861,1743885064840,-150.0,0.000469,30]
[357196862,1743885064849,-500.0,0.00046954,30]
[357196863,1743885064859,-150.0,0.00046956,30]
[357196864,1743885064869,-150.0,0.00046971,30]
[357196865,1743885064878,-200.0,0.00046976,2]
[357196866,1743885064888,-200.0,0.00046976,2]
[357196867,1743885064897,-200.0,0.00046976,2]
[357196868,1743885064906,-200.0,0.00046976,2]
[357196869,1743885064915,-200.0,0.00046976,2]
[357196870,1743885064924,-200.0,0.00046976,2]
[357196871,1743885064933,-200.0,0.00046976,2]
[357196872,1743885064942,-200.0,0.00046976,2]
[357196873,1743885064951,-200.0,0.00046976,2]
[357196874,1743885064960,-200.0,0.00046976,2]
[357196875,1743885064969,-200.0,0.00046976,2]
[357196876,1743885064978,-200.0,0.00046976,2]
[357196877,1743885064987,-200.0,0.00046976,2]
[357196878,1743885064995,-200.0,0.00046976,2]
[357196879,1743885065004,-200.0,0.00046976,2]
[357196880,1743885065014,-200.0,0.00046976,2]
[357196881,1743885065023,-200.0,0.00046976,2]
[357196882,1743885065031,-200.0,0.00046976,2]
[357196883,1743885065040,-200.0,0.00046976,2]
[357196884,1743885065050,-200.0,0.00046976,2]
[357196885,1743885065059,-200.0,0.00046976,2]
[357196886,1743885065069,-200.0,0.00046976,2]
[357196887,1743885065078,-200.0,0.00046976,2]
[357196888,1743885065086,-200.0,0.00046976,2]
[357196889,1743885065095,-200.0,0.00046976,2]
[357196890,1743885065104,-315.0,0.00046976,2]
[357196891,1743885065114,-200.0,0.00046976,2]
[357196892,1743885065123,-200.0,0.00046976,2]
[357196893,1743885065133,-200.0,0.00046976,2]
[357196894,1743885065143,-200.0,0.00046976,2]
[357196895,1743885065152,-200.0,0.00046976,2]
[357196896,1743885065162,-200.0,0.00046976,2]
[357196897,1743885065171,-200.0,0.00046976,2]
[357196898,1743885065181,-200.0,0.00046976,2]
[357196899,1743885065191,-153.0,0.00046976,2]
[357196900,1743885065200,-283.0,0.00046976,13]
[357196901,1743885065210,-50000.0,0.00047,47]
[357196902,1743885065219,-10197.26955175,0.00047,2]
[357196903,1743885065228,-1000.0,0.00047,120]
[357196904,1743885065238,-191.1,0.00047,15]
[357196905,1743885065248,-252.73,0.00047,120]
[357196906,1743885065257,-7374.01010154,0.00047,14]
[357196907,1743885065266,-56316.1494624,0.00047,2]
[357196908,1743885065275,-949.971443,0.00047,48]
[357196909,1743885065285,-1500.0,0.00047,3]
[357196910,1743885065294,-2000.0,0.00047,120]
[357196911,1743885065303,-950.0,0.00047,2]
[357196912,1743885065312,-150.0,0.00047013,30]
[357196913,1743885065321,-500.0,0.00047048,30]
[357196914,1743885065330,-150.0,0.00047069,30]
[357196915,1743885065339,-150.0,0.00047076,30]
[357196916,1743885065348,-150.0,0.00047088,3]
[357196917,1743885065357,-150.0,0.00047125,30]
[357196918,1743885065366,-150.0,0.00047149,30]
[357196919,1743885065375,-150.0,0.00047182,30]
[357196920,1743885065385,-900.0,0.00047216,120]
[357196921,1743885065394,-150.0,0.00047238,30]
[357196922,1743885065403,-150.0,0.00047238,30]
[357196923,1743885065412,-150.0,0.00047294,30]
[357196924,1743885065422,-150.0,0.00047327,30]
[357196925,1743885065431,-150.0,0.00047351,30]
[357196926,1743885065440,-30000.0,0.000474,30]
[357196927,1743885065450,-48293.63999999,0.000474,7]
[357196928,1743885065459,-150.0,0.000474,30]
[357196929,1743885065468,-150.0,0.00047407,30]
[357196930,1743885065477,-150.0,0.00047463,30]
[357196931,1743885065487,-742.0,0.000475,120]
[357196932,1743885065497,-1000.0,0.000475,3]
[357196933,1743885065506,-150.0,0.00047505,30]
[357196934,1743885065516,-150.0,0.0004752,30]
[357196935,1743885065525,-1927.37799324,0.00047553,120]
[357196936,1743885065534,-150.0,0.00047576,30]
[357196937,1743885065543,-5231.53401615,0.000476,2]
[357196938,1743885065553,-150.0,0.00047633,30]
[357196939,1743885065563,-150.0,0.00047683,30]
[357196940,1743885065572,-150.0,0.00047689,30]
[357196941,1743885065582,-150.0,0.00047725,30]
[357196942,1743885065591,-150.0,0.00047745,30]
[357196943,1743885065600,-543.31524445,0.00047764,120]
[357196944,1743885065609,-15687.23726714,0.00047777,2]
[357196945,1743885065618,-500.0,0.00047778,5]
[357196946,1743885065627,-152.0,0.00047786,13]
[357196947,1743885065637,-2000.0,0.000478,30]
[357196948,1743885065646,-150.0,0.00047801,2]
[357196949,1743885065657,-150.0,0.00047802,30]
[357196950,1743885065667,-150.0,0.00047858,30]
[357196951,1743885065676,-150.0,0.00047862,30]
[357196952,1743885065685,-500.68,0.00047889,2]
[357196953,1743885065694,-3000.0,0.0004789,35]
[357196954,1743885065705,-386.0,0.000479,45]
[357196955,1743885065714,-150.0,0.00047914,30]
[357196956,1743885065723,-517.79040598,0.00047945,2]
[357196957,1743885065735,-150.0,0.00047971,30]
[357196958,1743885065744,-50000.0,0.00048,48]